Cogmind - Beta 10.2 @@@ ROGUE MODE // 2020.11.13 @ 19:52:16 // Halloween2020/ForbiddenLore Player: rusmal Result: Destroyed by P-80 Master with Gamma Rifle Performance ------------- Evolutions (9) 4500 Regions Visited (15) 3000 Robots Destroyed (146) 730 Value Destroyed (3985) 3985 Prototype IDs (33) 660 Alien Tech Used (2) 400 Bonus (848) 848 TOTAL SCORE: 14123 Bonus ------- High Alert Combat Kills 329 Follower Combat Kills 219 Met Zhirov 300 Cogmind --------- Core Integrity 0/1600 Matter 44/300 Energy 66/100 System Corruption 3% Temperature Cool (0) Movement Core (250) Ox4 Location -1/Access Parts ------- > --- POWER (2) -------- (None) > --- PROPULSION (6) --- (None) > --- UTILITY (15) ----- Enhanced Optical Array Advanced Signal Interpreter Experimental Signal Interpreter Improved Component Analysis Suite > --- WEAPON (2) ------- Fusion Bomb Launcher > --- INVENTORY (4) ---- Particle Reactor Advanced ECM Suite Peak State ------------ > --- POWER ------------ Light Nuclear Core Light Particle Reactor > --- PROPULSION ------- Cooled Cesium-ion Thruster Impulse Thruster Array Impulse Thruster Array > --- UTILITY ---------- Experimental Power Amplifier Medium Storage Unit Advanced Energy Well Enhanced Optical Array Advanced Sensor Array Advanced Signal Interpreter Improved Transmission Jammer Reaction Control System Improved Cloaking Device Point Defense System Hacking Suite Hacking Suite Hacking Suite Mini Drone Bay > --- WEAPON ----------- Enhanced Coil Gun Ripper > --- INVENTORY -------- Cesium-ion Thruster Q-thruster Mini Drone Bay Transdimensional Reconstructor Enhanced Quantum Rifle Enhanced Nova Cannon Fusion Bomb Launcher Axe [Rating: 134] Favorites ----------- Power Light Nuclear Core Engine Cooled Ion Engine Power Core Light Nuclear Core Reactor Quantum Reactor Propulsion Advanced Treads Treads Advanced Treads Leg Aluminum Leg Hover Unit Aerolev Unit Flight Unit Cesium-ion Thruster Utility Large Storage Unit Device Advanced Sensor Array Storage Large Storage Unit Processor Advanced Signal Interpreter Hackware Hacking Suite Protection Hardened Light Armor Plating Weapon Heavy Assault Rifle Energy Gun Beam Rifle Energy Cannon Compact HERF Cannon Ballistic Gun Heavy Assault Rifle Launcher Mini Grenade Launcher Slashing Weapon Ripper Build | -11 -10 -9 -9 -8 -7 -6 -5 -5 -5 -5 -4 -4 -3 -2 -1 ------- Run | Scr Mat Mat Sto Mat Fac Fac Fac Upp Upp Zhi Pro Fac Res Res Acc Slots Evolved 18 | . . 2 . 2 2 2 2 . . . . 2 2 2 2 Power 1 | . . . . . . 1 . . . . . . . . . Propulsion 4 | . . 1 . 1 . . . . . . . . . 1 1 Utility 13 | . . 1 . 1 2 1 2 . . . . 2 2 1 1 Weapon . | . . . . . . . . . . . . . . . . Parts Attached 190 | 7 17 35 20 22 17 9 1 . . 6 . 15 6 16 19 Power 26 | 2 2 4 5 1 1 3 . . . . . 3 1 1 3 Engine 13 | 2 . 4 5 1 . 1 . . . . . . . . . Core 8 | . 2 . . . 1 2 . . . . . 3 . . . Reactor 5 | . . . . . . . . . . . . . 1 1 3 Propulsion 60 | 2 7 19 1 13 5 1 . . . . . 4 1 3 4 Treads 19 | . . 4 1 12 . . . . . . . . . . 2 Leg 24 | 2 7 15 . . . . . . . . . . . . . Wheel . | . . . . . . . . . . . . . . . . Hover 1 | . . . . 1 . . . . . . . . . . . Flight 16 | . . . . . 5 1 . . . . . 4 1 3 2 Utility 61 | 1 5 2 4 3 9 5 1 . . 5 . 6 3 10 7 Device 23 | . . . . 1 3 4 1 . . . . 3 2 4 5 Storage 18 | 1 2 . 3 2 1 . . . . 4 . 1 . 3 1 Processor 5 | . . . . . 2 . . . . . . 1 . 1 1 Hackware 6 | . . . . . 1 1 . . . . . 1 1 2 . Protection 9 | . 3 2 1 . 2 . . . . 1 . . . . . Artifact . | . . . . . . . . . . . . . . . . Weapon 43 | 2 3 10 10 5 2 . . . . 1 . 2 1 2 5 Energy Gun 10 | . . 5 2 . . . . . . . . . . . 3 Energy Cannon 2 | . . . 1 . . . . . . . . . . . 1 Ballistic Gun 17 | 2 3 4 3 4 . . . . . . . . 1 . . Ballistic Cannon . | . . . . . . . . . . . . . . . . Launcher 10 | . . 1 4 1 1 . . . . . . 1 . 1 1 Special Weapon . | . . . . . . . . . . . . . . . . Impact Weapon . | . . . . . . . . . . . . . . . . Slashing Weapon 4 | . . . . . 1 . . . . 1 . 1 . 1 . Piercing Weapon . | . . . . . . . . . . . . . . . . Special Melee Weapon . | . . . . . . . . . . . . . . . . Unidentified Prototypes 15 | . . . 2 2 . 2 . . . 4 . 1 1 2 1 Parts Lost 50 | . 1 12 . 5 2 . . . . . . . 2 14 14 Power 7 | . . 1 . 1 . . . . . . . . 1 2 2 Propulsion 18 | . . 6 . 2 1 . . . . . . . . 5 4 Utility 17 | . 1 1 . . 1 . . . . . . . 1 6 7 Weapon 8 | . . 4 . 2 . . . . . . . . . 1 1 Highest Loss Streak 14 | . 1 4 . 1 2 . . . . . . . 2 14 10 Average Slot Usage (%) 90 | . 95 96 99 98 85 90 88 88 88 89 88 90 88 73 33 Engine 6 | . 3 10 11 8 . . . . . . . . . . . Core 3 | . 9 . . . 7 13 11 11 11 11 11 9 8 2 . Treads 14 | . . 7 32 35 1 . . . . . . . . . 4 Leg 8 | . 27 25 . . . . . . . . . . . . . Flight 4 | . . . . . 28 26 23 23 23 23 23 14 9 10 2 Device 4 | . . . . . 9 22 23 23 23 23 23 21 25 15 4 Storage 21 | . 18 22 31 35 8 6 5 5 5 6 5 9 9 9 2 Processor 2 | . . . . . 8 6 5 5 5 5 5 9 9 8 11 Hackware 2 | . . . . . 7 6 11 11 11 11 11 12 15 15 2 Protection 3 | . 6 9 1 . 1 . . . . . . . . . . Energy Gun 2 | . . 9 . . . . . . . . . . . . . Ballistic Gun 12 | . 27 12 17 16 . . . . . . . . 2 2 . Launcher 1 | . . . 3 1 2 . . . . . . 2 1 . . Slashing Weapon 1 | . . . . . 7 6 5 5 5 5 5 6 4 3 . Naked Turns . | . . . . . . . . . . . . . . . . Heaviest Build 81 | 12 41 54 67 81 20 26 26 26 26 29 26 33 46 57 33 Greatest Support 89 | 20 20 66 66 89 18 26 26 26 26 26 26 50 54 62 57 Greatest Overweight (x) 17 | . 10 17 1 1 1 . . . . 1 . . 1 13 4 Average Overweight (x) . | . . . . . . . . . . . . . . . . Largest Inventory Capacity 28 | 6 16 16 22 28 28 8 8 8 8 8 8 8 8 12 4 Average Capacity 15 | 5 9 16 20 27 9 8 8 8 8 8 8 8 8 9 4 Most Carried 28 | 6 16 16 22 28 27 8 7 8 8 8 8 8 8 12 4 Average Carried 15 | 2 7 15 20 26 8 7 7 7 8 7 8 7 7 7 3 Final Capacity 28 | 6 16 16 22 28 8 8 8 8 8 8 8 8 8 4 4 Final Carried 28 | 6 16 16 22 28 7 8 7 8 8 8 8 8 8 3 2 Class Distribution -------------------- 35% | Hauler-Mutant 29% | Mutant 11% | Scavenger-Mutant 9% | Hacker-Ninja 4% | Hacker-Sprinter 3% | Sprinter Dominant Class ---------------- Mutant | -10/Materials Scavenger-Mutant | -9/Materials Hauler-Mutant | -9/Storage Hauler-Mutant | -8/Materials Sprinter | -7/Factory Sprinter | -6/Factory Hacker-Sprinter | -5/Factory Hacker-Sprinter | -5/Upper Caves Hacker-Sprinter | -5/Upper Caves Hacker-Sprinter | -5/Zhirov Scavenger-Sprinter | -4/Proximity Caves Hacker-Ninja | -4/Factory Hacker-Ninja | -3/Research Hacker-Ninja | -2/Research Mutant | -1/Access Resources | -11 -10 -9 -9 -8 -7 -6 -5 -5 -5 -5 -4 -4 -3 -2 -1 ----------- Run | Scr Mat Mat Sto Mat Fac Fac Fac Upp Upp Zhi Pro Fac Res Res Acc Matter Collected 4002 | 165 350 743 724 1294 . 105 . 185 . . 70 102 . 255 9 Remotely . | . . . . . . . . . . . . . . . . Salvage Created 5495 | . 322 1392 784 2301 . 129 . . . . . 353 . 214 . Parts 363 | . 23 114 59 133 . 7 . . . . . 19 . 8 . Haulers Intercepted 19 | . 1 5 6 5 . 1 . . . . . 1 . . . Recyclers Shooed 6 | . . 2 2 1 . . . . . . . 1 . . . Parts Field Recycled . | . . . . . . . . . . . . . . . . Retrieved Matter . | . . . . . . . . . . . . . . . . Parts Self-Destructed . | . . . . . . . . . . . . . . . . Prevented . | . . . . . . . . . . . . . . . . Kills | -11 -10 -9 -9 -8 -7 -6 -5 -5 -5 -5 -4 -4 -3 -2 -1 ------- Run | Scr Mat Mat Sto Mat Fac Fac Fac Upp Upp Zhi Pro Fac Res Res Acc Combat Hostiles Destroyed 95 | . 8 31 12 36 . . . . . . . 5 . 3 . Guns 69 | . 8 30 3 28 . . . . . . . . . . . AOE 23 | . . . 9 6 . . . . . . . 5 . 3 . Classes Destroyed 12 | . 3 5 1 3 . . . . . . . . . . . Worker 7 | . . 2 2 2 . . . . . . . 1 . . . Builder 6 | . . . 5 . . . . . . . . 1 . . . Hauler 19 | . 1 5 6 5 . 1 . . . . . 1 . . . Recycler 7 | . . 1 2 3 . . . . . . . 1 . . . Operator 8 | . . 1 . 1 1 1 . . . . . 1 . 3 . Watcher 4 | . . 1 1 2 . . . . . . . . . . . Swarmer 29 | . 3 16 1 4 . . . . . . . 5 . . . Grunt 35 | . 5 6 5 19 . . . . . . . . . . . Brawler 1 | . . . . 1 . . . . . . . . . . . Protector 1 | . . . . 1 . . . . . . . . . . . Sentry 26 | . . 9 6 10 . . . . . . . . . 1 . Hunter 3 | . . . . 1 . . . . . . . . . 2 . Best Kill Streak 11 | . 3 8 11 4 1 2 . . . . . 8 . 3 . Combat Bots Only 7 | . 3 7 2 4 . . . . . . . 5 . 3 . Max Kills in Single Turn 4 | . 1 2 3 3 1 1 . . . . . 4 . 1 . Gunslinging 1 | . . . . 1 . . . . . . . . . . . Exploded 3 | . . . 1 3 . . . . . . . 3 . 1 . Melee . | . . . . . . . . . . . . . . . . Uniques/NPCs Destroyed . | . . . . . . . . . . . . . . . . Combat | -11 -10 -9 -9 -8 -7 -6 -5 -5 -5 -5 -4 -4 -3 -2 -1 -------- Run | Scr Mat Mat Sto Mat Fac Fac Fac Upp Upp Zhi Pro Fac Res Res Acc Damage Taken 11231 | . 403 2028 657 2396 73 . . . . . . 219 256 2129 3070 Core 3202 | . 72 264 57 292 21 . . . . . . 26 22 829 1619 Absorbed by Shields . | . . . . . . . . . . . . . . . . Core Remaining (%) 76 | 100 71 . 19 46 97 100 . . . . 100 97 98 39 . Volleys Fired 389 | . 33 108 74 150 3 . . . . . . 5 . 8 8 Largest 2 | . 2 2 2 2 1 . . . . . . 1 . 1 1 Hottest 94 | . 40 79 79 59 30 . . . . . . 30 . 52 94 Shots Fired 690 | . 66 204 96 300 3 . . . . . . 5 . 8 8 Gun 620 | . 66 204 63 280 . . . . . . . . . . 7 Cannon 2 | . . . 1 . . . . . . . . . . . 1 Launcher 68 | . . . 32 20 3 . . . . . . 5 . 8 . Special . | . . . . . . . . . . . . . . . . Kinetic 534 | . 66 131 57 280 . . . . . . . . . . . Thermal 59 | . . 49 3 . . . . . . . . . . . 7 Explosive 48 | . . . 32 . 3 . . . . . . 5 . 8 . Electromagnetic 49 | . . 24 4 20 . . . . . . . . . . 1 Robot Hit Streak 31 | . 12 19 8 31 . . . . . . . 2 . 5 3 Robot Miss Streak 6 | . 3 4 6 3 1 . . . . . . . . 1 1 Penetration Max . | . . . . . . . . . . . . . . . . Secondary Targets 18 | . 3 8 1 6 . . . . . . . . . . . Max Gunslinging Chain 1 | . 1 1 1 1 . . . . . . . . . . . Shots Hit Robots 515 | . 40 151 52 223 . 7 . . . . . 23 . 14 5 Core Hits 255 | . 18 58 46 90 2 3 . . . . . 17 . 21 . Critical Hits 4 | . . 2 1 1 . . . . . . . . . . . Critical Kills . | . . . . . . . . . . . . . . . . Critical Parts Destroyed 4 | . . 2 1 1 . . . . . . . . . . . Melee Attacks 176 | . . . . . 8 26 5 22 3 . 3 43 15 31 20 Impact . | . . . . . . . . . . . . . . . . Slashing 176 | . . . . . 8 26 5 22 3 . 3 43 15 31 20 Piercing . | . . . . . . . . . . . . . . . . Sneak Attacks 6 | . . . . . . 1 . . . . . 4 . 1 . Combat Hostiles . | . . . . . . . . . . . . . . . . Follow-up Attacks 1 | . . . . . . . . . . . . 1 . . . Damage Inflicted 12866 | . 437 2192 2164 4145 110 373 . . . . . 1638 . 1586 221 Guns 6679 | . 437 2192 567 3262 . . . . . . . . . . 221 Cannons . | . . . . . . . . . . . . . . . . Explosions 4077 | . . . 1597 883 110 . . . . . . 434 . 1053 . Melee 2110 | . . . . . . 373 . . . . . 1204 . 533 . Ramming . | . . . . . . . . . . . . . . . . Kinetic 5470 | . 437 1262 509 3262 . . . . . . . . . . . Thermal 831 | . . 580 . 30 . . . . . . . . . . 221 Explosive 3150 | . . . 1597 . 110 . . . . . . 390 . 1053 . Electromagnetic 1305 | . . 350 58 853 . . . . . . . 44 . . . Impact . | . . . . . . . . . . . . . . . . Slashing 2110 | . . . . . . 373 . . . . . 1204 . 533 . Piercing . | . . . . . . . . . . . . . . . . Highest Corruption 6 | . 1 . 1 2 6 . . . . . . . 2 2 3 Average Corruption 1 | . 1 . 1 1 6 . . . . . . . 2 2 2 Corruption Purged . | . . . . . . . . . . . . . . . . Effects 23 | . 5 . 6 4 2 . . . . . . . 3 3 . Message Errors 4 | . 2 . . 1 1 . . . . . . . . . . Heat Flow Errors 2 | . . . . . . . . . . . . . 1 1 . Energy Discharges 6 | . 2 . 2 1 1 . . . . . . . . . . Data Loss (minor) 5 | . 1 . 3 . . . . . . . . . 1 . . Targeting Errors 6 | . . . 1 2 . . . . . . . . 1 2 . Overload Shots . | . . . . . . . . . . . . . . . . Overflow Damage 439 | . . . 45 22 10 47 . . . . . 103 . 212 . Projectiles . | . . . . . . . . . . . . . . . . Explosions 96 | . . . 45 22 10 . . . . . . 19 . . . Melee 343 | . . . . . . 47 . . . . . 84 . 212 . Knockbacks . | . . . . . . . . . . . . . . . . Impact . | . . . . . . . . . . . . . . . . Kinetic . | . . . . . . . . . . . . . . . . Secondary . | . . . . . . . . . . . . . . . . Self-Inflicted Damage 271 | . . . 42 174 . . . . . . . 55 . . . Shots 14 | . . . 1 10 . . . . . . . 3 . . . Rammed . | . . . . . . . . . . . . . . . . Targets Rammed . | . . . . . . . . . . . . . . . . Kicked . | . . . . . . . . . . . . . . . . Crushed . | . . . . . . . . . . . . . . . . Highest Temperature 443 | . 35 443 36 24 . . . . . . . . 192 87 . Average Temperature 91 | . 10 133 11 4 . . . . . . . . 105 49 . Received Heat Transfer 2040 | . 165 477 165 927 . . . . . . . . 9 126 171 Effects 7 | . . 7 . . . . . . . . . . . . . Shutdowns 2 | . . 2 . . . . . . . . . . . . . Energy Bleed 4 | . . 4 . . . . . . . . . . . . . Short Circuit 1 | . . 1 . . . . . . . . . . . . . Siege Activations . | . . . . . . . . . . . . . . . . Robots Corrupted 2 | . . . . 2 . . . . . . . . . . . Combat Hostiles 2 | . . . . 2 . . . . . . . . . . . Parts Fried 14 | . . 4 . 10 . . . . . . . . . . . Impact Corruptions . | . . . . . . . . . . . . . . . . Robots Melted 1 | . . 1 . . . . . . . . . . . . . Combat Hostiles 1 | . . 1 . . . . . . . . . . . . . Parts Melted 1 | . . 1 . . . . . . . . . . . . . Heat Transferred 1792 | . . 1480 . 90 . . . . . . . . . . 222 Parts Sabotaged . | . . . . . . . . . . . . . . . . Parts Stolen . | . . . . . . . . . . . . . . . . Parts Stripped . | . . . . . . . . . . . . . . . . Power Chain Reactions 3 | . . . . 3 . . . . . . . . . . . Missiles Intercepted . | . . . . . . . . . . . . . . . . Alert | -11 -10 -9 -9 -8 -7 -6 -5 -5 -5 -5 -4 -4 -3 -2 -1 ------- Run | Scr Mat Mat Sto Mat Fac Fac Fac Upp Upp Zhi Pro Fac Res Res Acc Peak Influence 994 | . 147 386 555 994 405 265 139 . . . . 357 321 549 498 Initial 383 | . . . 113 161 383 198 129 . . . . . 101 180 214 Average 271 | . 31 155 353 461 388 225 133 . . . . 142 202 293 363 Maximum Alert Level 3 | . . 1 2 3 2 1 . . . . . 1 1 2 2 Low Security (%) 35 | 100 100 55 6 8 . 11 100 . . . . 66 51 18 . Level 1 43 | . . 44 68 36 65 88 . . . . . 33 48 67 52 Level 2 18 | . . . 25 41 34 . . . . . . . . 14 48 Level 3 3 | . . . . 13 . . . . . . . . . . . Level 4 . | . . . . . . . . . . . . . . . . Level 5 . | . . . . . . . . . . . . . . . . High Security . | . . . . . . . . . . . . . . . . Max Security . | . . . . . . . . . . . . . . . . Squads Dispatched 23 | . . 4 3 5 . . . . . . . 4 1 2 4 Investigation 5 | . . 3 . 1 . . . . . . . . . . 1 Extermination 2 | . . . . . . . . . . . . . 1 . 1 Reinforcement 11 | . . 1 2 1 . . . . . . . 4 . 2 1 Assault 2 | . . . . 1 . . . . . . . . . . 1 Garrison 3 | . . . 1 2 . . . . . . . . . . . Intercept . | . . . . . . . . . . . . . . . . Construction Impeded 3 | . . . 2 . . . . . . . . 1 . . . Haulers Reinforced 1 | . . . . . . . . . . . . 1 . . . Stealth | -11 -10 -9 -9 -8 -7 -6 -5 -5 -5 -5 -4 -4 -3 -2 -1 --------- Run | Scr Mat Mat Sto Mat Fac Fac Fac Upp Upp Zhi Pro Fac Res Res Acc Distress Signals 12 | . 1 4 1 2 . . . . . . . 1 1 . 2 Communications Jammed 21 | . . . . . . . . . . . . 1 6 14 . Distress Signals 21 | . . . . . . . . . . . . 1 6 14 . Times Spotted 260 | . 14 47 27 68 1 1 . 3 . . . 11 13 28 47 Peak Tracking Total 18 | . 3 9 4 6 1 1 . 5 . . . 7 6 14 18 Tactical Retreats 36 | . 1 4 . 12 . . . 1 . . . 1 3 6 8 Traps | -11 -10 -9 -9 -8 -7 -6 -5 -5 -5 -5 -4 -4 -3 -2 -1 ------- Run | Scr Mat Mat Sto Mat Fac Fac Fac Upp Upp Zhi Pro Fac Res Res Acc Traps Triggered 13 | . 5 3 2 . . . . . . . . . 1 2 . Indirectly . | . . . . . . . . . . . . . . . . Trap Hack Attempts . | . . . . . . . . . . . . . . . . Triggered . | . . . . . . . . . . . . . . . . Disarmed . | . . . . . . . . . . . . . . . . Reprogrammed . | . . . . . . . . . . . . . . . . Reused . | . . . . . . . . . . . . . . . . Traps Extracted . | . . . . . . . . . . . . . . . . Installed . | . . . . . . . . . . . . . . . . Triggered . | . . . . . . . . . . . . . . . . Machines | -11 -10 -9 -9 -8 -7 -6 -5 -5 -5 -5 -4 -4 -3 -2 -1 ---------- Run | Scr Mat Mat Sto Mat Fac Fac Fac Upp Upp Zhi Pro Fac Res Res Acc Machines Disabled 23 | . . 4 8 7 1 . . . . . . 3 . . . Max in Single Turn 2 | . . 1 1 1 1 . . . . . . 2 . . . Garrison Access 3 | . . . . . . . . . . . . 1 . 2 . Machines Sabotaged . | . . . . . . . . . . . . . . . . Garrisons Compromised . | . . . . . . . . . . . . . . . . Overloaded Fab Kills . | . . . . . . . . . . . . . . . . Fab Network Shutdowns . | . . . . . . . . . . . . . . . . Hacking | -11 -10 -9 -9 -8 -7 -6 -5 -5 -5 -5 -4 -4 -3 -2 -1 --------- Run | Scr Mat Mat Sto Mat Fac Fac Fac Upp Upp Zhi Pro Fac Res Res Acc Machines Accessed 84 | . 9 16 8 11 2 3 2 . . 7 1 9 5 8 3 Terminals 43 | . 6 10 5 7 1 2 . . . . 1 2 4 4 1 Fabricators 3 | . . . . . . . . . . . . 1 . 1 1 Repair Stations 8 | . 1 2 1 2 . . . . . . . 2 . . . Recycling Units 14 | . 2 2 2 1 1 1 1 . . . . 3 1 . . Scanalyzers 5 | . . 2 . 1 . . 1 . . . . . . 1 . Garrison Access 4 | . . . . . . . . . . . . 1 . 2 1 Total Hacks 189 | . 19 45 23 37 2 4 6 . . 16 1 12 8 12 4 Successful 124 | . 8 34 16 20 1 2 5 . . 16 1 9 4 8 . Failed 65 | . 11 11 7 17 1 2 1 . . . . 3 4 4 4 Catastrophic 4 | . . 1 . . . . . . . . . 1 . 1 1 Database Lockouts . | . . . . . . . . . . . . . . . . Manual 71 | . 10 18 12 18 1 3 . . . . . 1 3 4 1 Terminals 99 | . 13 30 16 21 1 3 . . . . 1 2 7 4 1 Fabricators 4 | . . . . . . . . . . . . 1 . 2 1 Repair Stations 22 | . 1 6 3 8 . . . . . . . 4 . . . Recycling Units 21 | . 5 2 4 2 1 1 2 . . . . 3 1 . . Scanalyzers 20 | . . 7 . 6 . . 4 . . . . . . 3 . Garrison Access 7 | . . . . . . . . . . . . 2 . 3 2 Terminal Hacks 40 | . 3 8 4 3 . . . . . 16 1 . 3 2 . Record 10 | . . . . 1 . . . . . 4 1 . 3 1 . Part Schematic 4 | . . . . . . . . . . 4 . . . . . Robot Analysis 5 | . . 1 . . . . . . . 4 . . . . . Prototype ID Bank 10 | . 2 2 2 . . . . . . 4 . . . . . Branch Access Points 1 | . . 1 . . . . . . . . . . . . . Alert Level 2 | . . 1 . 1 . . . . . . . . . . . Unreport Threat 4 | . . 1 1 1 . . . . . . . . . 1 . Hauler Manifests 3 | . 1 1 1 . . . . . . . . . . . . Registered Prototypes 1 | . . 1 . . . . . . . . . . . . . Fabricator Hacks 2 | . . . . . . . . . . . . 1 . 1 . Load Schematic 1 | . . . . . . . . . . . . . . 1 . Build 1 | . . . . . . . . . . . . 1 . . . Repair Station Hacks 18 | . . 6 2 6 . . . . . . . 4 . . . Scan Component 9 | . . 3 1 3 . . . . . . . 2 . . . Repair 9 | . . 3 1 3 . . . . . . . 2 . . . Recycling Unit Hacks 18 | . 4 2 4 2 1 1 1 . . . . 2 1 . . Process 1 | . . . 1 . . . . . . . . . . . . Report Inventory 13 | . 2 2 2 1 1 1 1 . . . . 2 1 . . Retrieve Matter 2 | . . . 1 1 . . . . . . . . . . . Retrieve Components 2 | . 2 . . . . . . . . . . . . . . Scanalyzer 20 | . . 7 . 6 . . 4 . . . . . . 3 . Insert Component 10 | . . 3 . 3 . . 2 . . . . . . 2 . Analyze 10 | . . 4 . 3 . . 2 . . . . . . 1 . Garrison Access Hacks 3 | . . . . . . . . . . . . 1 . 2 . Seal Access 3 | . . . . . . . . . . . . 1 . 2 . Unauthorized Hacks 23 | . 1 11 6 3 . 1 . . . . . 1 . . . Terminals 23 | . 1 11 6 3 . 1 . . . . . 1 . . . Botnet 18 | . . 10 5 2 . 1 . . . . . . . . . Operators 5 | . 1 1 1 1 . . . . . . . 1 . . . Fabricators . | . . . . . . . . . . . . . . . . Repair Stations . | . . . . . . . . . . . . . . . . Recycling Units . | . . . . . . . . . . . . . . . . Scanalyzers . | . . . . . . . . . . . . . . . . Garrison Access . | . . . . . . . . . . . . . . . . Data Cores Recovered 2 | . . . . . . 1 . . . . . . . 1 . Used 1 | . . . . . . 1 . . . . . . . . . Hacking Detections 60 | . 7 15 6 9 1 2 2 . . . . 6 5 4 3 Full Trace Events 5 | . . 2 1 1 . . . . . . . . . . 1 Feedback Events . | . . . . . . . . . . . . . . . . Feedback Blocked . | . . . . . . . . . . . . . . . . Robot Schematics Acquired . | . . . . . . . . . . . . . . . . Robots Built . | . . . . . . . . . . . . . . . . Matter . | . . . . . . . . . . . . . . . . Time . | . . . . . . . . . . . . . . . . Total Robot Build Rating . | . . . . . . . . . . . . . . . . Part Schematics Acquired 12 | . . 3 . 2 . . 2 . . 4 . . . 1 . Parts Built 1 | . . . . . . . . . . . . 1 . . . Matter 256 | . . . . . . . . . . . . 256 . . . Time 128 | . . . . . . . . . . . . 128 . . . Total Part Build Rating 8 | . . . . . . . . . . . . 8 . . . Parts Repaired 9 | . . 3 1 3 . . . . . . . 2 . . . Time 293 | . . 84 38 121 . . . . . . . 50 . . . Parts Recycled . | . . . . . . . . . . . . . . . . Recycled Matter 195 | . . . 195 . . . . . . . . . . . . Retrieved Matter 55 | . . . . 55 . . . . . . . . . . . Retrieved Components 10 | . 10 . . . . . . . . . . . . . . Parts Scanalyzed 9 | . . 3 . 3 . . 2 . . . . . . 1 . Part Schematics Acquired 8 | . . 3 . 2 . . 2 . . . . . . 1 . Parts Damaged 1 | . . . . 1 . . . . . . . . . . . Bothacking | -11 -10 -9 -9 -8 -7 -6 -5 -5 -5 -5 -4 -4 -3 -2 -1 ------------ Run | Scr Mat Mat Sto Mat Fac Fac Fac Upp Upp Zhi Pro Fac Res Res Acc Used RIF Installer . | . . . . . . . . . . . . . . . . Robots Hacked . | . . . . . . . . . . . . . . . . Non-combat . | . . . . . . . . . . . . . . . . Combat . | . . . . . . . . . . . . . . . . Robot Hacks Applied . | . . . . . . . . . . . . . . . . Relay Couplers Released . | . . . . . . . . . . . . . . . . Robots Rewired . | . . . . . . . . . . . . . . . . Allies Hacked . | . . . . . . . . . . . . . . . . Hacks Repelled . | . . . . . . . . . . . . . . . . Allies | -11 -10 -9 -9 -8 -7 -6 -5 -5 -5 -5 -4 -4 -3 -2 -1 -------- Run | Scr Mat Mat Sto Mat Fac Fac Fac Upp Upp Zhi Pro Fac Res Res Acc Total Allies 2 | . . . 2 . . . . . . . . . . . . Largest Group 2 | . . . 2 1 . . . . . . . . . . . Highest-Rated Group 114 | . . . 114 99 . . . . . . . . . . . Highest-Rated Ally 99 | . . . 99 99 . . . . . . . . . . . Total Orders 2 | . . . . 2 . . . . . . . . . . . EXPLORE 2 | . . . . 2 . . . . . . . . . . . Ally Attacks 16 | . . . 16 . . . . . . . . . . . . Total Damage 747 | . . . 747 . . . . . . . . . . . . Kills 10 | . . . 10 . . . . . . . . . . . . Allies Corrupted . | . . . . . . . . . . . . . . . . Allies Melted . | . . . . . . . . . . . . . . . . Intel | -11 -10 -9 -9 -8 -7 -6 -5 -5 -5 -5 -4 -4 -3 -2 -1 ------- Run | Scr Mat Mat Sto Mat Fac Fac Fac Upp Upp Zhi Pro Fac Res Res Acc Robot Analysis Total 5 | . . 1 . . . . . . . 4 . . . . . Derelict Logs Recovered 3 | . . . . . . . . 1 1 . 1 . . . . Drone Launches 3 | . . . . 3 . . . . . . . . . . . Drone Recoveries 1 | . . . . 1 . . . . . . . . . . . Exploration | -11 -10 -9 -9 -8 -7 -6 -5 -5 -5 -5 -4 -4 -3 -2 -1 ------------- Run | Scr Mat Mat Sto Mat Fac Fac Fac Upp Upp Zhi Pro Fac Res Res Acc Turns Passed 10797 | 75 1257 2311 1735 2351 221 249 51 270 119 73 111 500 306 443 725 Spaces Moved 9579 | 54 785 1083 893 1086 359 543 127 660 395 171 340 863 612 781 827 Core 452 | 7 1 1 . . . . . . . . . . . 88 355 Treads 2357 | . . 247 893 1086 . . . . . . . . . . 131 Legs 1666 | 47 784 835 . . . . . . . . . . . . . Wheels . | . . . . . . . . . . . . . . . . Hover . | . . . . . . . . . . . . . . . . Flight 5104 | . . . . . 359 543 127 660 395 171 340 863 612 693 341 Fastest Speed 28 | 50 120 145 145 145 32 28 28 28 28 28 28 28 37 29 32 Average Speed 82 | 110 136 152 146 149 32 28 28 28 28 28 28 31 37 37 73 Slowest Speed 900 | 120 550 900 165 175 108 29 28 28 28 105 28 37 120 700 250 Overloaded Moves . | . . . . . . . . . . . . . . . . Propulsion Burnouts . | . . . . . . . . . . . . . . . . Robots Hopped 1 | . . . . . . . . . . . . . . 1 . Cave-ins Triggered 1 | . . . . . 1 . . . . . . . . . . Teleports 1 | . . . . . . . . . . . . . . 1 . Exploration Rate (%) 44 | 4 95 88 95 69 12 16 3 69 53 62 57 26 17 22 29 Regions Visited 15 Branch Regions 5 Pre-discovered Areas 1 | . . . . . . . . . . 1 . . . . . Known Exits Taken 11 | . . 1 . . 1 1 1 1 1 1 1 1 1 1 . Unknown Exits Taken 4 | 1 1 . 1 1 . . . . . . . . . . . Scrap Searched 1 | . . . . . . . . . 1 . . . . . . Spaces Dug 118 | . . . . . 8 19 5 20 3 . 3 16 15 16 13 Terrain Destroyed 604 | . . . 283 13 24 19 5 20 3 . 3 34 15 172 13 Melee 118 | . . . . . 8 19 5 20 3 . 3 16 15 16 13 Projectile . | . . . . . . . . . . . . . . . . AOE 486 | . . . 283 13 16 . . . . . . 18 . 156 . Terrain Rammed . | . . . . . . . . . . . . . . . . Walls Destroyed . | . . . . . . . . . . . . . . . . Machines Disabled . | . . . . . . . . . . . . . . . . Actions | -11 -10 -9 -9 -8 -7 -6 -5 -5 -5 -5 -4 -4 -3 -2 -1 --------- Run | Scr Mat Mat Sto Mat Fac Fac Fac Upp Upp Zhi Pro Fac Res Res Acc Total 11609 | 65 914 1550 1223 1551 459 595 132 706 397 193 350 1030 667 877 900 Wait 952 | . 47 249 203 235 42 2 . 22 . 8 8 88 24 17 7 Move 9561 | 53 784 1082 892 1085 358 542 126 659 394 170 339 862 611 777 827 Hop 1 | . . . . . . . . . . . . . . 1 . Pick Up 130 | 5 16 35 13 29 4 4 . 2 . 1 . 5 4 5 7 Fast Attach 90 | 6 11 14 7 7 . 7 . . . 6 . 9 5 7 11 Attach 63 | . 1 13 1 8 17 2 1 . . . . 3 1 8 8 Detach 43 | . 3 4 4 3 4 5 . . . 1 . 4 2 7 6 Swap 39 | 1 5 8 12 7 . . . . . 1 . 3 . 2 . Drop 165 | . 14 37 15 27 23 7 . 1 . 6 . 11 5 13 6 Fire 389 | . 33 108 74 150 3 . . . . . . 5 . 8 8 Melee 173 | . . . . . 8 26 5 22 3 . 3 40 15 31 20 Ram . | . . . . . . . . . . . . . . . . Kick . | . . . . . . . . . . . . . . . . Crush . | . . . . . . . . . . . . . . . . Escape Stasis 1 | . . . . . . . . . . . . . . 1 . Rewire 2 | . . . 2 . . . . . . . . . . . . Trap . | . . . . . . . . . . . . . . . . Miscellaneous . | . . . . . . . . . . . . . . . . Route ------- -11/Scrapyard -10/Materials (discovered 4 exits: *Mat x3 / [*Min]) -9/Materials (discovered 6 exits: *Mat x2 / *Min x2 / *Sto x2) -9/Storage -8/Materials (discovered 2 exits: *Fac x2) -7/Factory -6/Factory -5/Factory -5/Upper Caves -5/Upper Caves -5/Zhirov -4/Proximity Caves -4/Factory -3/Research (discovered 2 exits: *Res x2) -2/Research -1/Access History --------- Turn | Location | Event 5 | -11/Scrapyard | Discovered new exit (range 14) 76 | -11/Scrapyard | Entered Materials 246 | -10/Materials | Discovered new exit (range 3) 317 | -10/Materials | Build established: Mutant 485 | -10/Materials | Discovered new exit (range 3) 517 | -10/Materials | Discovered new exit (range 16) 870 | -10/Materials | Discovered new exit (range 10) 1333 | -10/Materials | Entered another Materials area 1333 | -9/Materials | Evolved 2 slots: Propulsion x1, Utility x1 1537 | -9/Materials | Discovered new exit (range 15) 1851 | -9/Materials | Repaired Aluminum Leg 2107 | -9/Materials | Discovered new exit (range 15) 2258 | -9/Materials | Build established: Scavenger-Mutant 2378 | -9/Materials | Discovered new exit (range 15) 2720 | -9/Materials | Discovered new exit (range 9) 2882 | -9/Materials | Core integrity fell below 50% 2920 | -9/Materials | Lost 4 parts (1n1u2w) 2934 | -9/Materials | Destroyed 7 combat bots 2988 | -9/Materials | Repaired Rnf. Ion Engine 3016 | -9/Materials | Repaired Aluminum Leg 3053 | -9/Materials | Discovered new exit (range 14) 3483 | -9/Materials | Identified exit to Mines 3483 | -9/Materials | Identified exit to Storage 3503 | -9/Materials | Build established: Mutant 3644 | -9/Materials | Entered Storage 4169 | -9/Storage | Discovered new exit (range 16) 4195 | -9/Storage | Build established: Hauler-Mutant 4215 | -9/Storage | Core integrity fell below 20% 4262 | -9/Storage | Met 01-MTF 4667 | -9/Storage | Garrison activated, responded to threat 4740 | -9/Storage | Repaired Adv. Treads 5379 | -9/Storage | Entered Materials 5379 | -8/Materials | Accompanied by 1 ally (01-MTF) 5379 | -8/Materials | Evolved 2 slots: Propulsion x1, Utility x1 5384 | -8/Materials | 01-MTF left 6376 | -8/Materials | Repaired Minigun 6410 | -8/Materials | Repaired Imp. Treads 6665 | -8/Materials | Discovered new exit (range 4) 7097 | -8/Materials | Repaired Imp. Assault Rifle 7292 | -8/Materials | Discovered new exit (range 8) 7379 | -8/Materials | First assault squad dispatched 7443 | -8/Materials | Core integrity fell below 50% 7601 | -8/Materials | Garrison activated, responded to threat 7730 | -8/Materials | Entered Factory 7730 | -7/Factory | Evolved 2 slots: Utility x2 7837 | -7/Factory | Crushed by falling debris 7941 | -7/Factory | Discovered new exit (range 15) 7951 | -7/Factory | Identified exit to Factory 7951 | -7/Factory | Entered another Factory area 7951 | -6/Factory | Evolved 2 slots: Power x1, Utility x1 8133 | -6/Factory | Build established: Sprinter 8166 | -6/Factory | Discovered new exit (range 14) 8200 | -6/Factory | Identified exit to Factory 8200 | -6/Factory | Entered another Factory area 8200 | -5/Factory | Evolved 2 slots: Utility x2 8246 | -5/Factory | Discovered new exit (range 4) 8247 | -5/Factory | Identified exit to Upper Caves 8251 | -5/Factory | Entered Upper Caves 8262 | -5/Upper Caves | Encountered a Warlord checkpoint 8468 | -5/Upper Caves | Build established: Hacker-Sprinter 8492 | -5/Upper Caves | Learned Factory emergency access door positions 8508 | -5/Upper Caves | Discovered new exit (range 8) 8510 | -5/Upper Caves | Identified exit to Upper Caves 8521 | -5/Upper Caves | Entered another Upper Caves area 8594 | -5/Upper Caves | Learned Factory non-interactive machine intel 8596 | -5/Upper Caves | Encountered a Warlord checkpoint 8634 | -5/Upper Caves | Discovered new exit (range 9) 8640 | -5/Upper Caves | Identified exit to Zhirov 8640 | -5/Upper Caves | Entered Zhirov 8640 | -5/Zhirov | Discovered new exit (range 3) 8646 | -5/Zhirov | Met Zhirov 8651 | -5/Zhirov | Learned location of Testing (-2) 8656 | -5/Zhirov | Zhirov requested help retrieving the SGEMP Prototype 8662 | -5/Zhirov | Found Alien Artifact 8677 | -5/Zhirov | Found Alien Artifact 8677 | -5/Zhirov | Identified Integrated Dissipator 8677 | -5/Zhirov | Installed Integrated Dissipator, increased core heat dissipation (+20) 8712 | -5/Zhirov | Identified exit to Proximity Caves 8713 | -5/Zhirov | Entered Proximity Caves 8715 | -4/Proximity Caves | Learned location of 1 exit from Research 8820 | -4/Proximity Caves | Discovered new exit (range 16) 8824 | -4/Proximity Caves | Identified exit to Factory 8824 | -4/Proximity Caves | Entered Factory 8824 | -4/Factory | Evolved 2 slots: Utility x2 8826 | -4/Factory | Loaded intel: 208 non-interactive machine locations 8901 | -4/Factory | Repaired Lgt. Nuclear Core 9132 | -4/Factory | Repaired Lgt. Nuclear Core 9267 | -4/Factory | Fabricated Impulse Thruster Array (x1) 9273 | -4/Factory | Spotted B-86 Titan 9321 | -4/Factory | Discovered new exit (range 10) 9324 | -4/Factory | Identified exit to Research 9324 | -4/Factory | Entered Research 9324 | -3/Research | Evolved 2 slots: Utility x2 9325 | -3/Research | Identified exit to Research 9345 | -3/Research | Build established: Hacker-Ninja 9539 | -3/Research | Found Fusion Bomb Launcher 9611 | -3/Research | Discovered exit to Research (range 17) 9630 | -3/Research | Entered another Research area 9630 | -2/Research | Evolved 2 slots: Propulsion x1, Utility x1 9676 | -2/Research | Spotted B-90 Cyclops 9908 | -2/Research | Identified Transdimensional Reconstructor 9992 | -2/Research | Warped through subspace 10005 | -2/Research | Lost 14 parts (2p5n6u1w) 10010 | -2/Research | Core integrity fell below 50% 10056 | -2/Research | Discovered new exit (range 6) 10073 | -2/Research | Identified exit to Access 10073 | -2/Research | Entered Access 10073 | -1/Access | Evolved 2 slots: Propulsion x1, Utility x1 10134 | -1/Access | Found Antimissile System 10216 | -1/Access | Found Prototype Processor 10216 | -1/Access | Identified Exp. Signal Interpreter 10233 | -1/Access | Core integrity fell below 50% 10277 | -1/Access | Spotted B-99 Colossus 10283 | -1/Access | Lost 4 parts (3u1w) 10323 | -1/Access | First assault squad dispatched 10538 | -1/Access | Build established: Mutant 10711 | -1/Access | Spotted B-99 Colossus 10713 | -1/Access | Core integrity fell below 20% 10794 | -1/Access | Found Fusion Bomb Launcher 10798 | -1/Access | Destroyed by P-80 Master with Gamma Rifle Last Messages --------------- 10743_ Penetrated by Slug. 10743_ Slug penetrates Wall. 10746_ Imp. Maneuvering Thrusters destroyed. 10748_ Quantum Reactor destroyed. 10750_ Acquired Lrn. Sensor Array. 10753_ S-43 Plague destroyed. 10754_ Slug penetrates Wall. 10756_ Arm. Medium Treads destroyed. 10757_ Diametric Drive destroyed. 10760_ Acquired Lrn. Proton Cannon. 10762_ Adv. Energy Well destroyed. 10762_ Slug penetrates P-80 Master. 10763_ Particle Reactor destroyed. 10769_ Acquired Adv. ECM Suite. 10772_ Impulse Thruster Array destroyed. 10772_ Dropped Com. HERF Cannon. 10773_ Dropped Enh. Quantum Rifle. 10773_ Dropped Lrn. Proton Cannon. 10776_ Lrn. Sensor Array destroyed. 10794_ Acquired Fusion Bomb Launcher. Map ----- +----------------------------------------------------+ | ??# """#??????????????# #???? | | ??# """#??????????????# #???? | | ??# ""#??????????????# #???? | | ??#]]] F""#??????????????# #???? | | ??#]]] """#??????????????# #???? | | ??#]] #??????????????# #???? | | ??# ???????????????# #???? | | ??######## ???????????????# #???? | | ??????????#???????????????# #???? | | ??????????????????????????# #???? | | ??????????????????????????# #???? | | ??????????????????????????# #???? | | ????????????????#?????????# #???? | | ????????????????# ????????# #???? | | ????????????????# ???????# #???? | | ????????????????# ??????# #???? | | ?????????????????? ?????# #???? | | ???????????????????? ??### ###?? | | ???????+##############+## #?? | | ?????? #?? | | ?????? #?? | | ?????? #?? | | ??????# ##### s #?? | | ??????? !?????###p####? | | ??????? " ???????# #? | | ????????## """????????#@ #? | | ?????????#?? ??????????# #? | | ????????????????????????# #? | | ????????????????????????# #? | | ????????????????????????# ! !#? | | ????????????????????????########? | | ????????????????????????????????? | | ????????????????????????????????? | | ????????????????????????????????? | | ????????????????????????????????? | | ????????????????????????????????? | | ????????????????????????????????? | | ????????????????????????????????? | | ????????????????????????????????? | | ????????????????????????????????? | | ????????????????????????????????? | | ????????????????????????????????? | | ????????????????????????????????? | | ????????????????????????????????? | | ????????????????????????????????? | | ????????????????????????????????? | | ????????????????????????????????? | | ????????????????????????????????? | | ????????????????????????????????? | | ????????????????????????????????? | +----------------------------------------------------+ Best States ------------- Heat Dissipation 72 Energy Generation 42 Energy Capacity 1150 Matter Stores 300 Matter Capacity 300 Sight Range 22 Robot Scan Range 20 Terrain Scan Range 20 Terrain Scan Density 110 ECM Strength 3 Jamming Range 12 Cloak Strength 3 Power Amplification 40 Additional Mass Support 9 Armor Coverage 225 Power Shielding 33 Point Defense Rating 80 Evasion (%) 76 Targeting Accuracy 6 Recoil Reduction 4 Stasis Canceling 2 Offensive Hacking 44 Defensive Hacking 10 Item Schematics ----------------- Hacking Suite | -9/Materials | Scanalyzed Rocket Launcher | -9/Materials | Scanalyzed Adv. Sensor Array | -9/Materials | Scanalyzed Adv. Signal Interpreter | -8/Materials | Scanalyzed Cesium-ion Thruster | -8/Materials | Scanalyzed Imp. Maneuvering Thrusters | -5/Factory | Scanalyzed VTOL Module | -5/Factory | Scanalyzed Assault Drone Bay | -5/Zhirov | Free Exp. Heat Sink | -5/Zhirov | Free Exp. Optical Array | -5/Zhirov | Free Imp. Arc Thrower | -5/Zhirov | Free Axe | -2/Research | Scanalyzed Robot Schematics ------------------ None Fabricated ------------ Impulse Thruster Array | x1 | -4/Factory | Preloaded Alien Tech Used ----------------- Integrated Dissipator Transdimensional Reconstructor Achievements -------------- Deadly Force Denied? Dodgeball, But With Guns Prolific Hacker Challenges ------------ None Game ------ Seed BiomechanicalScatterInjector Manual? 0 Play Time 02:54:25 Cumulative 26.1 hours Start 2020.11.13 @ 04:00:51 End 2020.11.13 @ 19:52:16 Sessions 2 Manual Loads 0 Difficulty Rogue Special Mode Halloween2020/ForbiddenLore Game No. 23 Rogue 23 Adventurer 0 Explorer 0 Win Type - Total 0 Types 0/0/0/0/0/0/0/0/0 Lore% 30 Gallery% 34 Achievement% 32 Wizard Run 0 Options --------- ASCII 0 Keyboard 1 Movement Numpad Keybinds 0 Fullscreen 2 Font 18/SmallcapsGlow Map View 76x50 Tactical HUD 1 Map Filters NONE Filters NONE Steam 1 RUN: 576ff0e0-980e-4bd2-9087-a739dbbd6250